bitfinex/quotes_SOLUSD_20240906
["timestamp","ask_amount","ask_price","bid_price","bid_amount"]
[1725657841654,79.98112161,123.64,123.56,10.59420691]
[1725657842860,79.98112161,123.64,123.56,19.23232077]
[1725657843360,2.02314976,123.63,123.56,19.23232077]
[1725657843744,2.023045,123.63,123.56,19.23232077]
[1725657843938,2.023045,123.63,123.56,8.63811386]
[1725657844138,2.02309452,123.62,123.56,8.63811386]
[1725657845151,12.61730143,123.62,123.56,8.63811386]
[1725657845451,45.0,123.61,123.56,8.63811386]
[1725657846256,47.02315589,123.62,123.56,8.63811386]
[1725657849253,45.0,123.61,123.56,8.63811386]
[1725657849866,2.02336985,123.6,123.56,8.63811386]
[1725657850058,12.61757676,123.6,123.53,1.40658833]
[1725657850248,47.02376002,123.59,123.53,1.40658833]
[1725657850451,32.9101,123.58,123.53,1.40658833]
[1725657850766,45.0,123.57,123.47,32.4053]
[1725657850948,45.0,123.57,123.36,110.68550253]
[1725657850949,10.59420691,123.54,123.48,1.40732662]
[1725657851150,2.02494998,123.53,123.45,10.59420691]
[1725657851356,47.02494998,123.53,123.45,10.59420691]
[1725657852563,32.9101,123.52,123.45,10.59420691]
[1725657852775,45.0,123.51,123.45,10.59420691]
[1725657853158,45.0,123.51,123.44,32.4053]
[1725657853356,45.0,123.51,123.45,10.59420691]
[1725657855172,47.02501079,123.51,123.44,12.2551]
[1725657855352,47.02501079,123.51,123.43,1.40768713]
[1725657855552,47.02501079,123.51,123.43,12.00189404]
[1725657856058,47.02501079,123.51,123.45,10.59420691]
[1725657857077,47.02501079,123.51,123.43,12.00189404]
[1725657858468,10.59420691,123.5,123.43,1.40768713]
[1725657858660,10.59420691,123.5,123.41,10.59420691]
[1725657858661,47.025552,123.49,123.41,10.59420691]
[1725657858867,2.02555421,123.48,123.41,10.59420691]
[1725657859255,32.3439,123.47,123.4,1.40353924]
[1725657859444,32.3439,123.47,123.38,32.4053]
[1725657859445,59.12546489,123.46,123.38,32.4053]
[1725657859776,2.02612871,123.45,123.39,10.59420691]
[1725657860073,2.02612871,123.45,123.38,33.8088529]
[1725657860271,2.02612871,123.45,123.39,10.59420691]
[1725657860972,2.02612871,123.45,123.35,20.80025831]
[1725657861280,2.02612871,123.45,123.27,37.88240242]
[1725657861281,10.59420691,123.44,123.36,11.99748435]
[1725657861477,2.02660009,123.43,123.36,10.59420691]
[1725657861659,47.02660009,123.43,123.36,10.59420691]
[1725657862078,47.02660009,123.43,123.34,26.55370317]
[1725657862280,32.3439,123.42,123.34,26.55370317]
[1725657862484,32.3439,123.42,123.32,34.23126148]
[1725657862485,47.02693398,123.41,123.32,34.23126148]
[1725657862657,2.02696285,123.4,123.32,34.23126148]
[1725657863154,12.0996,123.39,123.31,1.40367645]
[1725657863348,47.0272676,123.38,123.27,6.0808234]
[1725657863570,2.02733469,123.37,123.31,26.55370317]
[1725657863878,30.1485,123.36,123.29,27.95811146]
[1725657864070,45.0,123.35,123.29,27.95811146]
[1725657864450,30.1485,123.36,123.29,27.95811146]
[1725657865456,30.1485,123.36,123.31,26.55370317]
[1725657865654,30.1485,123.36,123.29,1.40440829]
[1725657865851,30.1485,123.36,123.3,26.55370317]
[1725657867274,45.0,123.35,123.3,26.55370317]
[1725657868254,45.0,123.35,123.26,13.1227]
[1725657868255,45.26872254,123.34,123.26,26.55370317]
[1725657868456,47.0280229,123.33,123.26,26.55370317]
[1725657868759,13.0927,123.31,123.2,26.55370317]
[1725657869069,13.0927,123.31,123.18,26.55370317]
[1725657869070,32.17756195,123.3,123.18,26.55370317]
[1725657869278,47.02930921,123.29,123.18,26.55370317]
[1725657869872,73.58301238,123.29,123.13,18.7706234]
[1725657870070,73.58301238,123.29,123.18,26.55370317]
[1725657870274,47.02930921,123.29,123.2,26.55370317]
[1725657870451,47.028946,123.29,123.14,32.527237]
[1725657870656,47.028946,123.29,123.23,26.55370317]
[1725657870961,47.028946,123.29,123.21,26.55370317]
[1725657871298,47.028946,123.29,123.18,26.55370317]
[1725657871299,45.0,123.29,123.23,26.55370317]
[1725657871977,47.02872583,123.29,123.21,26.55370317]
[1725657873662,47.02872583,123.29,123.18,26.55370317]
[1725657874085,47.02872583,123.29,123.2,26.55370317]
[1725657874794,2.02894877,123.29,123.22,26.55370317]
[1725657875863,2.02894877,123.29,123.16,7.67634597]
[1725657876065,47.02894877,123.29,123.19,26.55370317]
[1725657877964,47.02894877,123.29,123.22,26.55370317]
[1725657878165,47.02894877,123.29,123.16,7.67634597]
[1725657878373,47.02894877,123.29,123.2,26.55370317]
[1725657879162,73.58265194,123.29,123.18,26.55370317]
[1725657879359,47.02894877,123.29,123.18,26.55370317]
[1725657879562,47.02894877,123.29,123.22,26.55370317]
[1725657880659,2.02889351,123.29,123.16,7.67634597]
[1725657880893,2.02889351,123.29,123.22,26.55370317]
[1725657881886,2.02889351,123.29,123.2,26.55370317]
[1725657882067,2.02889351,123.29,123.24,26.55370317]
[1725657882261,2.02856424,123.29,123.24,26.55370317]
[1725657883081,2.02856424,123.29,123.22,26.55370317]
[1725657883389,47.02856424,123.29,123.24,26.55370317]
[1725657883758,30.1485,123.3,123.24,26.55370317]
[1725657884165,30.1485,123.3,123.28,26.55370317]
[1725657884775,30.1485,123.3,123.26,26.55370317]
[1725657885085,30.1485,123.3,123.28,26.55370317]
[1725657885262,12.6967,123.35,123.28,26.55370317]
[1725657885583,12.6967,123.35,123.31,26.55370317]
[1725657886101,33.3243,123.36,123.33,26.55370317]
[1725657889787,33.3243,123.36,123.31,26.55370317]
[1725657889788,33.3243,123.36,123.35,26.55370317]
[1725657893003,46.021,123.39,123.35,26.55370317]
[1725657897295,33.3243,123.39,123.35,26.55370317]
[1725657897796,46.021,123.42,123.37,26.55370317]
[1725657900998,33.3243,123.42,123.39,26.55370317]
[1725657901191,33.3243,123.42,123.37,26.55370317]
[1725657901571,2.02631727,123.41,123.33,13.1609]
[1725657901781,2.02679464,123.4,123.33,13.1609]
[1725657901977,47.02679464,123.4,123.34,26.55370317]
[1725657902402,2.02679464,123.4,123.34,26.55370317]
[1725657906492,13.1305,123.39,123.34,26.55370317]
[1725657906800,47.02699393,123.38,123.34,26.55370317]
[1725657907381,2.02702695,123.37,123.32,36.60948165]
[1725657908896,2.02702695,123.37,123.32,26.55370317]
[1725657909603,2.02702695,123.37,123.3,26.55370317]
[1725657909604,31.1694,123.36,123.3,26.55370317]
[1725657909907,31.1694,123.36,123.27,6.82135316]
[1725657909908,47.02769895,123.35,123.28,26.55370317]
[1725657910197,2.02791854,123.34,123.28,26.55370317]
[1725657910893,45.0,123.35,123.3,26.55370317]
[1725657913917,31.1694,123.36,123.34,26.55370317]
[1725657914110,46.32677529,123.39,123.3,10.05577848]
[1725657914415,46.32677529,123.39,123.33,26.55370317]
[1725657915109,44.2999,123.39,123.35,26.55370317]
[1725657917304,47.02681888,123.38,123.33,26.55370317]
[1725657917508,2.02716449,123.37,123.33,26.55370317]
[1725657917810,2.02716449,123.37,123.32,30.36574979]
[1725657918919,2.02716449,123.37,123.3,30.36574979]
[1725657919211,44.2999,123.39,123.27,8.22307041]
[1725657919212,44.2999,123.39,123.32,30.36574979]
[1725657919395,44.2999,123.39,123.27,8.22307041]
[1725657919396,44.2999,123.39,123.34,30.36574979]
[1725657919827,44.2999,123.39,123.36,30.36574979]
[1725657921503,44.2999,123.39,123.31,10.05577848]
[1725657921802,44.2999,123.39,123.32,30.36574979]
[1725657922310,44.2999,123.39,123.31,50.0]
[1725657922509,44.2999,123.39,123.36,30.36574979]
[1725657922699,44.2999,123.39,123.34,30.36574979]
[1725657924520,44.2999,123.39,123.36,30.36574979]
[1725657924921,31.1694,123.39,123.36,30.36574979]
[1725657925422,12.9455,123.42,123.38,30.36574979]
[1725657930630,12.9455,123.42,123.35,30.36574979]
[1725657930631,14.97176672,123.42,123.35,30.36574979]
[1725657930924,45.0,123.41,123.35,30.36574979]
[1725657931138,2.02677657,123.4,123.35,30.36574979]
[1725657931380,45.0,123.41,123.35,30.36574979]
[1725657933407,45.0,123.41,123.37,30.36574979]
[1725657933928,45.0,123.41,123.35,30.36574979]
[1725657934311,8.1051,123.38,123.32,27.03564716]
[1725657934523,2.02737833,123.37,123.29,30.36574979]
[1725657934724,47.02737833,123.37,123.29,30.36574979]
[1725657937338,31.6676,123.36,123.29,30.36574979]
[1725657937639,47.02774179,123.35,123.29,30.36574979]
[1725657938152,2.02768986,123.34,123.29,30.36574979]
[1725657938725,47.02775032,123.35,123.31,30.36574979]
[1725657938924,45.0,123.35,123.29,40.42152827]
[1725657939226,45.0,123.35,123.29,10.05577848]
[1725657939431,2.02770643,123.34,123.27,30.36574979]
[1725657940947,2.02770643,123.34,123.29,30.36574979]
[1725657941121,47.02759189,123.35,123.29,30.36574979]
[1725657941645,2.02761221,123.34,123.29,30.36574979]
[1725657941942,47.02774207,123.35,123.29,30.36574979]
[1725657942447,2.02764176,123.34,123.27,30.36574979]
[1725657943166,2.02764176,123.34,123.26,10.05577848]
[1725657943324,42.2131,123.33,123.25,8.22401592]
[1725657943531,42.2131,123.33,123.22,40.5300474]
[1725657943532,30.1795,123.31,123.22,40.5300474]
[1725657943838,47.0287726,123.3,123.22,30.36574979]
[1725657944039,12.5108,123.28,123.22,30.36574979]
[1725657944253,2.02877449,123.27,123.21,10.05577848]
[1725657944560,2.02877449,123.27,123.21,40.42152827]
[1725657945054,31.7136,123.26,123.21,40.42152827]
[1725657946754,31.7136,123.26,123.23,30.36574979]
[1725657947348,31.7136,123.26,123.21,40.42152827]
[1725657950960,31.7136,123.26,123.23,30.36574979]
[1725657951144,31.7136,123.26,123.21,40.42152827]
[1725657953250,31.7136,123.26,123.23,30.36574979]
[1725657955255,31.7136,123.26,123.21,10.05577848]
[1725657955447,45.0,123.25,123.2,30.36574979]
[1725657955644,2.02919648,123.24,123.2,30.36574979]
[1725657955845,2.02919476,123.23,123.2,30.36574979]
[1725657956754,2.02922,123.23,123.2,30.36574979]
[1725657956964,47.02927702,123.25,123.2,30.36574979]
[1725657957140,45.0,123.25,123.2,30.36574979]
[1725657957653,14.54007575,123.24,123.18,30.36574979]
[1725657957966,14.54007575,123.24,123.11,32.6414]
[1725657957967,31.7136,123.2,123.11,40.53388708]
[1725657958256,31.7136,123.18,123.11,30.36574979]
[1725657958461,2.03069376,123.17,123.11,30.36574979]
[1725657958637,47.03069376,123.17,123.11,30.36574979]
[1725657959037,12.2996,123.16,123.11,30.36574979]
[1725657959250,47.03070813,123.15,123.11,30.36574979]
[1725657959444,45.0,123.15,123.09,30.36574979]
[1725657959650,12.2996,123.16,123.09,30.36574979]
[1725657960149,12.2996,123.16,123.1,30.36574979]
[1725657960571,31.7136,123.18,123.06,39.32454809]
[1725657960572,31.7136,123.18,123.13,30.36574979]
[1725657960738,31.7136,123.18,123.07,82.4444]
[1725657960942,31.7136,123.18,123.08,57.55485698]
[1725657961145,31.7136,123.18,123.14,30.36574979]
[1725657961939,31.7136,123.18,123.14,38.06163471]
[1725657963168,33.1145,123.21,123.16,38.06163471]
[1725657963346,33.1145,123.21,123.2,38.06163471]
[1725657963658,45.4141,123.25,123.2,38.06163471]
[1725657964049,45.4141,123.25,123.12,8.63819031]
[1725657964050,33.360632,123.24,123.12,8.63819031]
[1725657964245,2.02971148,123.23,123.14,38.06163471]
[1725657964640,2.02971148,123.23,123.1,38.06163471]
[1725657964641,31.3315,123.21,123.1,38.06163471]
[1725657964965,12.108,123.18,123.1,38.06163471]
[1725657965169,47.03072398,123.17,123.1,38.06163471]
[1725657965970,14.13868577,123.18,123.13,38.06163471]
[1725657966174,14.13868577,123.18,123.11,38.06163471]
[1725657966542,12.108,123.18,123.11,38.06163471]
[1725657966859,12.108,123.18,123.13,38.06163471]
[1725657967874,12.108,123.18,123.15,38.06163471]
[1725657968061,12.108,123.18,123.13,38.06163471]
[1725657968565,31.3315,123.19,123.16,38.06163471]
[1725657969168,31.3315,123.19,123.1,8.63819031]
[1725657969350,2.02977718,123.18,123.12,38.06163471]
[1725657969546,2.02977718,123.18,123.1,38.06163471]
[1725657970151,47.02977718,123.18,123.1,38.06163471]
[1725657970965,2.02977718,123.18,123.13,38.06163471]
[1725657971170,33.36171391,123.19,123.13,38.06163471]
[1725657971356,2.0302169,123.18,123.13,38.06163471]
[1725657971558,47.0302169,123.18,123.13,38.06163471]
[1725657971768,2.0302169,123.18,123.13,38.06163471]
[1725657971978,33.36170808,123.19,123.13,38.06163471]
[1725657972150,2.03020808,123.17,123.13,38.06163471]
[1725657972774,47.03033972,123.18,123.13,38.06163471]
[1725657973069,14.13832024,123.17,123.07,8.63819031]
[1725657973377,12.108,123.17,123.12,38.06163471]
[1725657973560,12.108,123.17,123.07,58.63819031]
[1725657973561,12.108,123.17,123.13,38.06163471]
[1725657973967,31.3315,123.19,123.15,38.06163471]
[1725657974270,31.3315,123.19,123.13,38.06163471]
[1725657975054,31.3315,123.19,123.16,38.04822241]
[1725657975559,43.4395,123.23,123.18,38.04822241]
[1725657975968,43.4395,123.23,123.21,38.04822241]
[1725657977083,31.3315,123.23,123.21,38.04822241]
[1725657977860,12.108,123.26,123.21,38.04822241]
[1725657977861,31.3315,123.26,123.21,38.04822241]
[1725657978071,31.3315,123.26,123.24,38.04822241]
[1725657978262,31.3315,123.26,123.22,38.04822241]
[1725657979579,31.3315,123.26,123.24,38.04822241]
[1725657979765,45.2644,123.29,123.24,38.04822241]
[1725657980574,45.7271,123.33,123.26,38.04822241]
[1725657980895,45.7271,123.33,123.28,38.04822241]
[1725657981983,2.02773393,123.32,123.26,38.04822241]
[1725657982291,2.02796781,123.31,123.26,37.98728099]
[1725657984671,47.02805545,123.32,123.26,37.98728099]
[1725657985365,45.7271,123.33,123.26,37.98728099]
[1725657985782,2.02779135,123.32,123.26,37.98728099]
[1725657985983,45.7271,123.33,123.28,37.98728099]
[1725657986400,2.02773717,123.32,123.28,37.98728099]
[1725657986585,2.02773717,123.32,123.26,37.98728099]
[1725657986759,2.02777949,123.32,123.26,37.98728099]
[1725657987587,45.7271,123.33,123.26,37.98728099]
[1725657988573,45.7271,123.33,123.28,37.98728099]
[1725657990893,44.47,123.36,123.32,37.98728099]
[1725657993786,44.47,123.36,123.3,37.98728099]
[1725657995874,44.47,123.36,123.32,37.98728099]
[1725657996084,44.47,123.36,123.33,30.35791187]
[1725658000386,2.02680715,123.43,123.28,61.0513134]
[1725658000387,31.6694,123.39,123.35,30.35791187]
[1725658000698,31.6694,123.39,123.37,30.35791187]
[1725658002591,31.6694,123.39,123.36,30.35791187]
[1725658004490,31.6694,123.39,123.32,8.63819031]
[1725658004692,33.69545417,123.39,123.28,52.48428902]
[1725658004892,33.69545417,123.39,123.32,30.35791187]
[1725658005478,31.6694,123.39,123.34,30.35791187]
[1725658005997,31.6694,123.39,123.36,30.35791187]
[1725658008001,31.6694,123.39,123.38,30.35791187]
[1725658011109,43.523,123.43,123.38,30.35791187]
[1725658018119,2.02575646,123.42,123.36,30.35791187]
[1725658018903,43.523,123.43,123.36,30.35791187]
[1725658019100,2.02619298,123.42,123.36,30.35791187]
[1725658019298,43.523,123.43,123.36,30.35791187]
[1725658020311,43.523,123.43,123.38,30.35791187]
[1725658020608,43.523,123.43,123.4,30.35791187]
[1725658020816,43.523,123.43,123.38,30.35791187]
[1725658021317,43.523,123.43,123.4,30.35791187]
[1725658022316,43.523,123.43,123.38,30.35791187]
[1725658024515,43.523,123.43,123.4,30.35791187]
[1725658026532,2.02575338,123.42,123.38,30.35791187]
[1725658028735,43.523,123.43,123.36,30.35791187]
[1725658029235,2.02615405,123.42,123.36,30.35791187]
[1725658029535,2.02615405,123.42,123.34,30.35791187]
[1725658029536,31.717,123.41,123.34,30.35791187]
[1725658029839,47.02668578,123.4,123.34,30.35791187]
[1725658031119,2.02668578,123.4,123.34,30.35791187]
[1725658031318,31.717,123.41,123.34,30.35791187]
[1725658032921,2.02634835,123.4,123.34,30.35791187]
[1725658033434,47.02634835,123.4,123.34,30.35791187]
[1725658033634,12.9019,123.39,123.34,30.35791187]
[1725658033837,2.02668574,123.38,123.34,30.35791187]
[1725658035451,12.9019,123.39,123.34,30.35791187]
[1725658035452,14.9285835,123.39,123.34,30.35791187]
[1725658039927,12.9019,123.39,123.34,30.35791187]
[1725658041430,12.9019,123.39,123.34,39.42242087]
[1725658041638,12.9019,123.39,123.38,30.35791187]
[1725658041839,31.717,123.41,123.38,30.35791187]
[1725658042049,31.717,123.41,123.4,12.13241312]
[1725658043928,31.717,123.41,123.38,30.33360647]
[1725658046026,31.717,123.41,123.4,30.33360647]
[1725658050233,31.717,123.41,123.38,30.33360647]
[1725658050435,31.717,123.41,123.4,30.33360647]
[1725658052448,32.2578,123.45,123.4,30.33360647]
[1725658052755,32.2578,123.45,123.42,30.33360647]
[1725658058544,32.2578,123.45,123.43,5.51845332]
[1725658058864,32.2578,123.45,123.44,5.51845332]
[1725658059061,32.2578,123.45,123.43,5.51845332]
[1725658059364,32.2578,123.45,123.44,5.51845332]
[1725658059567,32.2578,123.45,123.43,5.51845332]
[1725658059789,32.2578,123.45,123.44,5.51845332]
[1725658059948,32.2578,123.45,123.43,5.51845332]
[1725658060150,32.2578,123.45,123.44,5.51845332]
[1725658060456,32.2578,123.45,123.43,5.51845332]
[1725658060663,32.2578,123.45,123.43,5.51845316]
[1725658060863,32.2578,123.45,123.44,5.51845316]
[1725658061064,32.2578,123.45,123.43,5.51845316]
[1725658062175,32.2578,123.45,123.44,5.51845316]
[1725658062474,32.2578,123.45,123.43,5.51845316]
[1725658062667,32.2578,123.45,123.44,5.51845316]
[1725658062861,32.2578,123.45,123.43,5.51845316]
[1725658063061,32.2578,123.45,123.44,5.51845316]
[1725658063259,32.2578,123.45,123.43,5.51845316]
[1725658064072,32.2578,123.45,123.44,12.12504605]
[1725658064774,14.15038355,123.52,123.44,12.12504605]
[1725658064775,32.0074,123.48,123.44,12.12504605]
[1725658064948,32.0074,123.48,123.42,2.46992589]
[1725658064949,32.0074,123.48,123.47,12.12504605]
[1725658065863,32.0074,123.51,123.47,12.12504605]
[1725658066180,32.0074,123.51,123.49,12.12504605]
[1725658069286,32.0074,123.51,123.43,50.0]
[1725658069576,32.0074,123.51,123.49,12.12504605]
[1725658069880,2.02452863,123.5,123.48,12.12504605]
[1725658070062,32.0074,123.51,123.48,12.12504605]
[1725658070680,32.0074,123.51,123.44,8.63819031]
[1725658070876,32.0074,123.51,123.46,12.12504605]
[1725658071271,32.0074,123.51,123.42,8.63819031]
[1725658071272,45.0,123.5,123.42,8.63819031]
[1725658071482,45.0,123.5,123.45,12.12504605]
[1725658075978,34.0324995,123.51,123.42,8.63819031]
[1725658076163,34.0324995,123.51,123.45,12.12504605]
[1725658077377,45.0,123.5,123.45,12.12504605]
[1725658080372,47.02511276,123.5,123.45,12.12504605]
[1725658080684,45.0,123.5,123.45,12.12504605]
[1725658081384,32.0074,123.51,123.45,12.12504605]
[1725658081577,32.0074,123.51,123.47,12.12504605]
[1725658086183,32.0074,123.51,123.49,12.12504605]
[1725658086488,32.0074,123.51,123.47,12.12504605]
[1725658088060,34.03204141,123.51,123.47,12.12504605]
[1725658088865,32.0074,123.51,123.47,12.12504605]
[1725658089280,34.03214096,123.51,123.47,12.12504605]
[1725658091392,32.0074,123.51,123.47,12.12504605]
[1725658092397,2.02474226,123.5,123.47,12.12504605]
[1725658092566,2.02474226,123.5,123.45,12.12504605]
[1725658094390,2.02474226,123.5,123.46,1.87825225]
[1725658094576,47.02474226,123.5,123.44,12.12504605]
[1725658094891,47.02474226,123.5,123.45,1.87825225]
[1725658095087,47.02474226,123.5,123.46,1.87825225]
[1725658095295,47.02474226,123.5,123.47,1.87825225]
[1725658095499,47.02474226,123.5,123.45,1.87825225]
[1725658095795,47.02474226,123.5,123.46,1.87825225]
[1725658095989,34.03247581,123.51,123.46,1.87825225]
[1725658096194,34.03247581,123.51,123.44,12.12504605]
[1725658096195,34.03247581,123.51,123.47,1.87833955]
[1725658096697,34.03247581,123.51,123.45,1.87833955]
[1725658096896,34.03247581,123.51,123.46,1.87833955]
[1725658097090,34.03247581,123.51,123.47,1.87833955]
[1725658097301,34.03247581,123.51,123.48,1.87833955]
[1725658097484,34.03247581,123.51,123.45,1.87833955]
[1725658097795,34.03247581,123.51,123.46,1.87833955]
[1725658097971,34.03247581,123.51,123.47,1.87833955]
[1725658098171,34.03247581,123.51,123.48,1.87833955]
[1725658098172,32.0074,123.51,123.48,1.87833955]
[1725658098373,34.0320864,123.51,123.47,1.87833955]
[1725658098591,34.0320864,123.51,123.48,1.87833955]
[1725658098890,34.0320864,123.51,123.49,1.87833955]
[1725658099079,34.0320864,123.51,123.47,1.87833955]
[1725658099276,34.0320864,123.51,123.46,12.12504605]
[1725658099498,34.0320864,123.51,123.48,1.87824531]
[1725658100185,34.0320864,123.51,123.49,1.87824531]
[1725658100385,34.0320864,123.51,123.47,1.87824531]
[1725658100584,34.0320864,123.51,123.48,1.87824531]
[1725658100794,34.0320864,123.51,123.49,1.87824531]
[1725658100982,32.0074,123.51,123.47,1.87824531]
[1725658101172,2.024781,123.5,123.48,1.87824531]
[1725658101375,2.024781,123.5,123.49,1.87824531]
[1725658101693,34.03225214,123.51,123.47,1.87824531]
[1725658101996,34.03225214,123.51,123.46,12.12504605]
[1725658101997,34.03225214,123.51,123.48,1.87824531]
[1725658102193,32.0074,123.51,123.49,1.87824531]
[1725658102387,32.0074,123.51,123.47,1.87824531]
[1725658102589,32.0074,123.51,123.46,12.12504605]
[1725658102791,32.0074,123.51,123.47,9.05635499]
[1725658103101,32.0074,123.51,123.48,1.87815451]
[1725658103493,32.0074,123.51,123.49,1.87815451]
[1725658103678,34.03216426,123.51,123.47,1.87815451]
[1725658103991,12.8856,123.49,123.43,1.87815451]
[1725658104190,47.02532138,123.48,123.44,1.87815451]
[1725658104401,32.5482,123.47,123.45,1.87815451]
[1725658104572,32.5482,123.47,123.46,1.87815451]
[1725658104775,77.5482,123.47,123.46,1.87815451]
[1725658106201,77.5482,123.47,123.42,12.12504605]
[1725658106403,77.5482,123.47,123.46,1.87910283]
[1725658106793,77.5482,123.47,123.43,1.87910283]
[1725658106994,77.5482,123.47,123.42,12.12504605]
[1725658107579,32.5482,123.47,123.44,12.12504605]
[1725658108805,32.5482,123.47,123.45,1.87915228]
[1725658109802,32.5482,123.47,123.45,12.12504605]
[1725658110710,32.5482,123.47,123.46,1.87860316]
[1725658111401,2.02504032,123.53,123.46,1.87860316]
[1725658111402,44.6218,123.52,123.46,1.87860316]
[1725658111608,45.0,123.51,123.47,1.87860316]
[1725658111786,45.0,123.51,123.48,1.87860316]
[1725658112184,45.0,123.51,123.49,1.87860316]
[1725658112404,45.0,123.51,123.5,1.87860316]
[1725658114808,45.0,123.51,123.45,12.12504605]
[1725658115321,45.0,123.51,123.5,1.87799899]
[1725658115816,44.6218,123.52,123.5,1.87799899]
[1725658116018,44.6218,123.52,123.51,1.87799899]
[1725658116229,89.6218,123.52,123.51,1.87799899]
[1725658116591,44.6218,123.52,123.51,1.87799899]
[1725658117293,89.6218,123.52,123.51,1.87799899]
[1725658118110,89.6218,123.52,123.51,1.87756775]
[1725658118814,44.6218,123.52,123.51,1.87755859]
[1725658119418,89.6218,123.52,123.51,1.87755859]
[1725658120218,91.64668953,123.52,123.51,1.87755859]
[1725658121218,89.6218,123.52,123.51,1.87755859]
[1725658121386,91.64669077,123.52,123.45,12.12504605]
[1725658121592,45.0,123.51,123.45,12.12504605]
[1725658122308,45.0,123.51,123.46,1.87778199]
[1725658122613,45.0,123.51,123.47,1.87778199]
[1725658122814,47.02482298,123.51,123.48,1.87778199]
[1725658123024,47.02482298,123.51,123.49,1.87778199]
[1725658123197,47.02482298,123.51,123.5,1.87778199]
[1725658125403,45.0,123.51,123.5,1.87778199]
[1725658126218,44.6218,123.52,123.5,1.87778199]
[1725658126422,44.6218,123.52,123.51,1.87778199]
[1725658126608,89.6218,123.52,123.51,1.87778199]
[1725658126921,45.0,123.52,123.51,1.87778199]
[1725658127219,31.4866,123.55,123.51,1.87778199]
[1725658127408,45.0,123.54,123.52,1.87778199]
[1725658127804,45.0,123.54,123.43,12.2081]
[1725658128009,45.0,123.54,123.46,12.12504605]
[1725658128399,45.0,123.54,123.47,1.87765765]
[1725658128721,47.02458031,123.54,123.48,1.87765765]
[1725658128926,47.02458031,123.54,123.49,1.87765765]
[1725658129124,47.02458031,123.54,123.5,1.87765765]
[1725658129303,47.02458031,123.54,123.51,1.87765765]
[1725658129499,47.02458031,123.54,123.52,1.87765765]
[1725658129702,47.02458031,123.54,123.43,20.58051253]
[1725658129905,47.02458031,123.54,123.46,12.12504605]
[1725658130109,47.02458031,123.54,123.47,1.87753454]
[1725658130312,47.02458031,123.54,123.48,1.87753454]
[1725658130514,47.02458031,123.54,123.49,1.87753454]
[1725658130829,47.02458031,123.54,123.5,1.87753454]
[1725658131329,47.02458031,123.54,123.51,1.87753454]
[1725658131522,47.02458031,123.54,123.52,1.87753454]
[1725658131827,47.02458031,123.54,123.48,12.12504605]
[1725658132030,47.02458031,123.54,123.49,1.87740504]
[1725658132318,47.02458031,123.54,123.5,1.87740504]
[1725658132519,47.02458031,123.54,123.51,1.87740504]
[1725658132719,47.02458031,123.54,123.52,1.87740504]
[1725658132923,47.02458031,123.54,123.48,12.12504605]
[1725658133133,47.02458031,123.54,123.49,1.87734349]
[1725658133300,45.0,123.54,123.5,1.87734349]
[1725658133499,31.4866,123.55,123.51,1.87734349]
[1725658133704,31.4866,123.55,123.52,1.87734349]
[1725658134199,31.4866,123.55,123.53,1.87734349]
[1725658134626,43.8265,123.6,123.54,14.00238954]
[1725658134812,43.8265,123.6,123.55,1.87734349]
[1725658135123,43.8265,123.6,123.56,1.87734349]
[1725658135328,43.8265,123.6,123.57,1.87734349]
[1725658135522,43.8265,123.6,123.55,1.87734349]
[1725658135826,43.8265,123.6,123.56,1.87734349]
[1725658135998,43.8265,123.6,123.57,1.87734349]
[1725658136322,43.8265,123.6,123.55,1.87734349]
[1725658136519,43.8265,123.6,123.56,1.87734349]
[1725658136708,43.8265,123.6,123.55,1.87734349]
[1725658136923,43.8265,123.6,123.56,1.87734349]
[1725658137119,45.0,123.59,123.55,1.87734349]
[1725658138224,45.0,123.59,123.54,12.12504605]
[1725658138930,2.02348356,123.58,123.54,12.12504605]
[1725658139132,47.02362837,123.59,123.54,14.00238954]
[1725658139431,45.0,123.59,123.54,12.12504605]
[1725658140040,45.0,123.59,123.54,14.00238954]
[1725658140543,47.02359418,123.59,123.54,1.87734349]
[1725658140827,12.12504605,123.57,123.5,1.87734349]
[1725658141009,12.12504605,123.57,123.48,12.12504605]
[1725658141010,47.02429178,123.56,123.51,1.87734349]
[1725658141409,47.02429178,123.56,123.47,20.1502]
[1725658141410,47.02429178,123.56,123.5,12.12504605]
[1725658141626,2.02429178,123.56,123.5,14.00238954]
[1725658141834,2.02429178,123.56,123.51,1.87734349]
[1725658142539,2.02429178,123.56,123.5,12.12504605]
[1725658142835,2.02429178,123.56,123.51,1.87588383]
[1725658143005,2.02429178,123.56,123.5,12.12504605]